fUSD/lending_fUSD_20250610
["ID","MTS","AMOUNT","RATE_DAILY","PERIOD"]
[365204596,1749532248533,-490.0,0.00017095,2]
[365204597,1749532248543,-176.4,0.00017095,2]
[365204598,1749532248552,-490.0,0.00017095,2]
[365204599,1749532248562,-681.03,0.00017095,2]
[365204600,1749532248572,-490.0,0.00017095,2]
[365204601,1749532248775,-490.0,0.00017095,2]
[365204602,1749532248785,-1245.6,0.00017095,2]
[365204603,1749532248795,-472.96861225,0.00017095,2]
[365204604,1749532248805,-490.0,0.00017095,2]
[365204605,1749532248815,-870.83,0.00017095,2]
[365204606,1749532248825,-490.0,0.00017095,2]
[365204607,1749532248836,-490.0,0.00017095,2]
[365204608,1749532248846,-635.07,0.00017095,2]
[365204609,1749532248856,-490.0,0.00017095,2]
[365204610,1749532248869,-490.0,0.00017095,2]
[365204611,1749532248879,-490.0,0.00017095,2]
[365204612,1749532248889,-490.0,0.00017095,2]
[365204613,1749532248899,-490.0,0.00017095,2]
[365204614,1749532248910,-490.0,0.00017095,2]
[365204615,1749532248920,-490.0,0.00017095,2]
[365204616,1749532248929,-1275.52,0.00017095,2]
[365204617,1749532248939,-767.53,0.00017095,2]
[365204618,1749532248950,-873.91,0.00017095,2]
[365204619,1749532248960,-261.59143006,0.00017095,2]
[365204620,1749532248970,-490.0,0.00017095,2]
[365204621,1749532248980,-490.0,0.00017095,2]
[365204622,1749532248991,-490.0,0.00017095,2]
[365204623,1749532249001,-162.79,0.00017095,2]
[365204624,1749532249011,-490.0,0.00017095,2]
[365204625,1749532249021,-2485.01,0.00017095,2]
[365204626,1749532249031,-490.0,0.00017095,2]
[365204627,1749532249042,-490.0,0.00017095,2]
[365204628,1749532249052,-490.0,0.00017095,2]
[365204629,1749532249063,-490.0,0.00017095,2]
[365204630,1749532249073,-737.37,0.00017095,2]
[365204631,1749532249084,-836.74,0.00017095,2]
[365204632,1749532249094,-490.0,0.00017095,2]
[365204633,1749532249105,-652.0,0.00017095,2]
[365204634,1749532249115,-675.13,0.00017095,2]
[365204635,1749532249125,-425.87,0.00017095,2]
[365204636,1749532249135,-490.0,0.00017095,2]
[365204637,1749532249145,-154.52570855,0.00017095,2]
[365204638,1749532249155,-490.0,0.00017095,2]
[365204639,1749532249164,-490.0,0.00017095,2]
[365204640,1749532249174,-490.0,0.00017095,2]
[365204641,1749532249184,-490.0,0.00017095,2]
[365204642,1749532249194,-787.54,0.00017095,2]
[365204643,1749532249204,-490.0,0.00017095,2]
[365204644,1749532249213,-270.57,0.00017095,2]
[365204645,1749532249224,-654.84,0.00017095,2]
[365204646,1749532249234,-490.0,0.00017095,2]
[365204647,1749532249244,-490.0,0.00017095,2]
[365204648,1749532249254,-521.34561872,0.00017095,2]
[365204649,1749532249264,-533.17,0.00017095,2]
[365204650,1749532249275,-674.67,0.00017095,2]
[365204651,1749532249285,-150.161,0.000171,2]
[365204652,1749532249294,-945.0,0.000171,2]
[365204653,1749532249305,-2637.0,0.000171,2]
[365204654,1749532249314,-500.0,0.00017115,2]
[365204655,1749532249324,-500.0,0.00017115,2]
[365204656,1749532249333,-2960.74444018,0.00017116,2]
[365204657,1749532249343,-4778.25157621,0.00017121,2]
[365204658,1749532249352,-150.0,0.00017178,2]
[365204659,1749532249363,-150.0,0.00017178,2]
[365204660,1749532249373,-150.0,0.00017178,2]
[365204661,1749532249383,-160.56397885,0.00017182,2]
[365204662,1749532249393,-200.0,0.00017205,2]
[365204663,1749532249403,-275.0,0.00017226,4]
[365204664,1749532249412,-630.78,0.00017259,2]
[365204665,1749532249421,-500.0,0.00017259,2]
[365204666,1749532249431,-151.0,0.0001726,2]
[365204667,1749532249440,-151.0,0.0001726,2]
[365204668,1749532249450,-151.0,0.0001726,2]
[365204669,1749532249459,-151.0,0.0001726,2]
[365204670,1749532249469,-490.0,0.0001726,2]
[365204671,1749532249479,-490.0,0.0001726,2]
[365204672,1749532249488,-490.0,0.0001726,2]
[365204673,1749532249498,-490.0,0.0001726,2]
[365204674,1749532249508,-1639.41,0.0001726,2]
[365204675,1749532249517,-858.01,0.0001726,2]
[365204676,1749532249528,-490.0,0.0001726,2]
[365204677,1749532249538,-490.0,0.0001726,2]
[365204678,1749532249549,-490.0,0.0001726,2]
[365204679,1749532249559,-490.0,0.0001726,2]
[365204680,1749532249569,-491.24886025,0.0001726,2]
[365204681,1749532249579,-681.03,0.0001726,2]
[365204682,1749532249590,-490.0,0.0001726,2]
[365204683,1749532249600,-490.0,0.0001726,2]
[365204684,1749532249610,-1245.6,0.0001726,2]
[365204685,1749532249620,-463.0258605,0.0001726,2]
[365204686,1749532249630,-870.83,0.0001726,2]
[365204687,1749532249640,-490.0,0.0001726,2]
[365204688,1749532249649,-490.0,0.0001726,2]
[365204689,1749532249659,-635.07,0.0001726,2]
[365204690,1749532249669,-359.14481114,0.0001726,2]
[365204691,1749532249679,-490.0,0.0001726,2]
[365204692,1749532249689,-490.0,0.0001726,2]
[365204693,1749532249699,-490.0,0.0001726,2]
[365204694,1749532249708,-490.0,0.0001726,2]
[365204695,1749532249718,-490.0,0.0001726,2]
[365204696,1749532249727,-558.03,0.0001726,2]
[365204697,1749532249737,-1275.52,0.0001726,2]
[365204698,1749532249747,-767.53,0.0001726,2]
[365204699,1749532249756,-873.91,0.0001726,2]
[365204700,1749532249766,-490.0,0.0001726,2]
[365204701,1749532249775,-490.0,0.0001726,2]
[365204702,1749532249784,-490.0,0.0001726,2]
[365204703,1749532249794,-490.0,0.0001726,2]
[365204704,1749532249803,-2485.01,0.0001726,2]
[365204705,1749532249813,-490.0,0.0001726,2]
[365204706,1749532249823,-490.0,0.0001726,2]
[365204707,1749532249832,-490.0,0.0001726,2]
[365204708,1749532249842,-490.0,0.0001726,2]
[365204709,1749532249852,-737.37,0.0001726,2]
[365204710,1749532249862,-836.74,0.0001726,2]
[365204711,1749532249879,-490.0,0.0001726,2]
[365204712,1749532249889,-652.0,0.0001726,2]
[365204713,1749532249900,-675.13,0.0001726,2]
[365204714,1749532249910,-490.0,0.0001726,2]
[365204715,1749532249920,-490.0,0.0001726,2]
[365204716,1749532249930,-490.0,0.0001726,2]
[365204717,1749532249940,-490.0,0.0001726,2]
[365204718,1749532249949,-490.0,0.0001726,2]
[365204719,1749532249960,-787.54,0.0001726,2]
[365204720,1749532249970,-490.0,0.0001726,2]
[365204721,1749532249980,-654.84,0.0001726,2]
[365204722,1749532249989,-292.28957743,0.0001726,2]
[365204723,1749532249999,-490.0,0.0001726,2]
[365204724,1749532250008,-533.17,0.0001726,2]
[365204725,1749532250018,-674.67,0.0001726,2]
[365204726,1749532250028,-1000.0,0.00017306,2]
[365204727,1749532250038,-1000.0,0.00017306,2]
[365204728,1749532250047,-2960.74444018,0.0001734,2]
[365204729,1749532250057,-4778.25157621,0.00017382,2]
[365204730,1749532250067,-383.908865,0.00017424,2]
[365204731,1749532250077,-383.908865,0.00017424,2]
[365204732,1749532250087,-490.0,0.00017424,2]
[365204733,1749532250098,-490.0,0.00017424,2]
[365204734,1749532250107,-490.0,0.00017424,2]
[365204735,1749532250116,-490.0,0.00017424,2]
[365204736,1749532250126,-1639.41,0.00017424,2]
[365204737,1749532250135,-858.01,0.00017424,2]
[365204738,1749532250145,-490.0,0.00017424,2]
[365204739,1749532250155,-490.0,0.00017424,2]
[365204740,1749532250165,-490.0,0.00017424,2]
[365204741,1749532250175,-490.0,0.00017424,2]
[365204742,1749532250185,-681.03,0.00017424,2]
[365204743,1749532250196,-288.32357052,0.00017424,2]
[365204744,1749532250205,-490.0,0.00017424,2]
[365204745,1749532250215,-1245.6,0.00017424,2]
[365204746,1749532250224,-870.83,0.00017424,2]
[365204747,1749532250234,-490.0,0.00017424,2]
[365204748,1749532250244,-490.0,0.00017424,2]
[365204749,1749532250253,-635.07,0.00017424,2]
[365204750,1749532250263,-490.0,0.00017424,2]
[365204751,1749532250273,-490.0,0.00017424,2]
[365204752,1749532250283,-490.0,0.00017424,2]
[365204753,1749532250293,-616.59253897,0.00017424,2]
[365204754,1749532250303,-490.0,0.00017424,2]
[365204755,1749532250313,-1275.52,0.00017424,2]
[365204756,1749532250323,-767.53,0.00017424,2]
[365204757,1749532250332,-873.91,0.00017424,2]
[365204758,1749532250342,-490.0,0.00017424,2]
[365204759,1749532250352,-490.0,0.00017424,2]
[365204760,1749532250361,-490.0,0.00017424,2]
[365204761,1749532250371,-490.0,0.00017424,2]
[365204762,1749532250381,-2485.01,0.00017424,2]
[365204763,1749532250390,-490.0,0.00017424,2]
[365204764,1749532250400,-490.0,0.00017424,2]
[365204765,1749532250409,-490.0,0.00017424,2]
[365204766,1749532250419,-737.37,0.00017424,2]
[365204767,1749532250429,-836.74,0.00017424,2]
[365204768,1749532250439,-490.0,0.00017424,2]
[365204769,1749532250448,-652.0,0.00017424,2]
[365204770,1749532250458,-675.13,0.00017424,2]
[365204771,1749532250468,-490.0,0.00017424,2]
[365204772,1749532250478,-206.00240121,0.00017424,2]
[365204773,1749532250488,-490.0,0.00017424,2]
[365204774,1749532250497,-490.0,0.00017424,2]
[365204775,1749532250507,-490.0,0.00017424,2]
[365204776,1749532250517,-787.54,0.00017424,2]
[365204777,1749532250527,-490.0,0.00017424,2]
[365204778,1749532250536,-654.84,0.00017424,2]
[365204779,1749532250546,-490.0,0.00017424,2]
[365204780,1749532250555,-533.17,0.00017424,2]
[365204781,1749532250565,-674.67,0.00017424,2]
[365204782,1749532250575,-2960.74444018,0.00017564,2]
[365204783,1749532250584,-512.046,0.00017588,2]
[365204784,1749532250594,-383.908865,0.00017589,2]
[365204785,1749532250603,-383.908865,0.00017589,2]
[365204786,1749532250613,-151.0,0.00017589,2]
[365204787,1749532250623,-151.0,0.00017589,2]
[365204788,1749532250632,-151.0,0.00017589,2]
[365204789,1749532250642,-490.0,0.00017589,2]
[365204790,1749532250652,-490.0,0.00017589,2]
[365204791,1749532250661,-490.0,0.00017589,2]
[365204792,1749532250670,-490.0,0.00017589,2]
[365204793,1749532250680,-1639.41,0.00017589,2]
[365204794,1749532250690,-858.01,0.00017589,2]
[365204795,1749532250699,-490.0,0.00017589,2]
[365204796,1749532250709,-490.0,0.00017589,2]
[365204797,1749532250718,-490.0,0.00017589,2]
[365204798,1749532250728,-490.0,0.00017589,2]
[365204799,1749532250737,-681.03,0.00017589,2]
[365204800,1749532250748,-490.0,0.00017589,2]
[365204801,1749532250758,-1245.6,0.00017589,2]
[365204802,1749532250767,-870.83,0.00017589,2]
[365204803,1749532250777,-490.0,0.00017589,2]
[365204804,1749532250787,-490.0,0.00017589,2]
[365204805,1749532250796,-635.07,0.00017589,2]
[365204806,1749532250805,-490.0,0.00017589,2]
[365204807,1749532250815,-490.0,0.00017589,2]
[365204808,1749532250824,-490.0,0.00017589,2]
[365204809,1749532250834,-490.0,0.00017589,2]
[365204810,1749532250844,-1275.52,0.00017589,2]
[365204811,1749532250853,-767.53,0.00017589,2]
[365204812,1749532250863,-873.91,0.00017589,2]
[365204813,1749532250876,-490.0,0.00017589,2]
[365204814,1749532250885,-490.0,0.00017589,2]
[365204815,1749532250894,-490.0,0.00017589,2]
[365204816,1749532250904,-490.0,0.00017589,2]
[365204817,1749532250914,-2485.01,0.00017589,2]
[365204818,1749532250923,-490.0,0.00017589,2]
[365204819,1749532250933,-490.0,0.00017589,2]
[365204820,1749532250944,-490.0,0.00017589,2]
[365204821,1749532250954,-737.37,0.00017589,2]
[365204822,1749532250964,-836.74,0.00017589,2]
[365204823,1749532250973,-490.0,0.00017589,2]
[365204824,1749532250983,-652.0,0.00017589,2]
[365204825,1749532250992,-675.13,0.00017589,2]
[365204826,1749532251002,-490.0,0.00017589,2]
[365204827,1749532251011,-490.0,0.00017589,2]
[365204828,1749532251020,-526.25941607,0.00017589,2]
[365204829,1749532251030,-490.0,0.00017589,2]
[365204830,1749532251039,-787.54,0.00017589,2]
[365204831,1749532251049,-574.39055951,0.00017589,2]
[365204832,1749532251058,-654.84,0.00017589,2]
[365204833,1749532251067,-490.0,0.00017589,2]
[365204834,1749532251077,-533.17,0.00017589,2]
[365204835,1749532251087,-674.67,0.00017589,2]
[365204836,1749532251096,-728.62,0.00017618,2]
[365204837,1749532251106,-796.87,0.00017627,2]
[365204838,1749532251115,-790.53,0.00017627,2]
[365204839,1749532251125,-796.76,0.00017627,2]
[365204840,1749532251134,-796.76,0.00017627,2]
[365204841,1749532251144,-454.79243286,0.00017627,2]
[365204842,1749532251208,-1132.623378,0.0001763,2]
[365204843,1749532251217,-170.66,0.00017636,2]
[365204844,1749532251227,-341.3,0.00017636,2]
[365204845,1749532251238,-4778.25157621,0.00017642,2]
[365204846,1749532251248,-275.0,0.00017676,4]
[365204847,1749532251258,-269.0,0.00017698,2]
[365204848,1749532251267,-776.0,0.000177,2]
[365204849,1749532251276,-829.0,0.000177,2]
[365204850,1749532251285,-3569.32,0.000177,2]
[365204851,1749532251295,-298.77669866,0.000177,2]
[365204852,1749532251305,-250.0,0.00017702,2]
[365204853,1749532251314,-500.0,0.00017704,2]
[365204854,1749532251323,-500.0,0.00017704,2]
[365204855,1749532251334,-1680.0,0.00017712,2]
[365204856,1749532251343,-150.0,0.0001772,2]
[365204857,1749532251352,-1000.0,0.0001773,2]
[365204858,1749532251362,-250.0,0.00017733,2]
[365204859,1749532251371,-150.0,0.00017735,2]
[365204860,1749532251380,-600.0,0.00017735,4]
[365204861,1749532251389,-150.0,0.0001774,2]
[365204862,1749532251399,-490.0,0.00017753,2]
[365204863,1749532251408,-326.06522852,0.00017753,2]
[365204864,1749532251418,-490.0,0.00017753,2]
[365204865,1749532251427,-490.0,0.00017753,2]
[365204866,1749532251436,-1639.41,0.00017753,2]
[365204867,1749532251445,-858.01,0.00017753,2]
[365204868,1749532251454,-490.0,0.00017753,2]
[365204869,1749532251464,-490.0,0.00017753,2]
[365204870,1749532251472,-287.03097971,0.00017753,2]
[365204871,1749532251482,-490.0,0.00017753,2]
[365204872,1749532251491,-681.03,0.00017753,2]
[365204873,1749532251500,-490.0,0.00017753,2]
[365204874,1749532251510,-1245.6,0.00017753,2]
[365204875,1749532251519,-870.83,0.00017753,2]
[365204876,1749532251528,-490.0,0.00017753,2]
[365204877,1749532251538,-345.97841161,0.00017753,2]
[365204878,1749532251547,-635.07,0.00017753,2]
[365204879,1749532251556,-490.0,0.00017753,2]
[365204880,1749532251566,-490.0,0.00017753,2]
[365204881,1749532251575,-490.0,0.00017753,2]
[365204882,1749532251585,-490.0,0.00017753,2]
[365204883,1749532251595,-1275.52,0.00017753,2]
[365204884,1749532251604,-767.53,0.00017753,2]
[365204885,1749532251613,-873.91,0.00017753,2]
[365204886,1749532251623,-490.0,0.00017753,2]
[365204887,1749532251633,-490.0,0.00017753,2]
[365204888,1749532251642,-490.0,0.00017753,2]
[365204889,1749532251651,-365.44201751,0.00017753,2]
[365204890,1749532251661,-2485.01,0.00017753,2]
[365204891,1749532251671,-490.0,0.00017753,2]
[365204892,1749532251680,-490.0,0.00017753,2]
[365204893,1749532251689,-490.0,0.00017753,2]
[365204894,1749532251699,-737.37,0.00017753,2]
[365204895,1749532251708,-836.74,0.00017753,2]
[365204896,1749532251717,-490.0,0.00017753,2]
[365204897,1749532251727,-652.0,0.00017753,2]
[365204898,1749532251736,-675.13,0.00017753,2]
[365204899,1749532251745,-490.0,0.00017753,2]
[365204900,1749532251754,-490.0,0.00017753,2]
[365204901,1749532251764,-490.0,0.00017753,2]
[365204902,1749532251773,-787.54,0.00017753,2]
[365204903,1749532251782,-654.84,0.00017753,2]
[365204904,1749532251792,-490.0,0.00017753,2]
[365204905,1749532251801,-533.17,0.00017753,2]
[365204906,1749532251811,-674.67,0.00017753,2]
[365204907,1749532251820,-200.0,0.00017761,2]
[365204908,1749532251830,-234.2337816,0.00017761,2]
[365204909,1749532251841,-840.70119032,0.00017763,2]
[365204910,1749532251851,-150.0,0.00017764,2]
[365204911,1749532251860,-1000.0,0.00017771,2]
[365204912,1749532251872,-2076.72942819,0.00017774,2]
[365204913,1749532251881,-1960.11900462,0.00017774,2]
[365204914,1749532251891,-200.0,0.00017774,2]
[365204915,1749532251900,-2765.68543656,0.00017776,2]
[365204916,1749532251910,-269.0,0.00017781,2]
[365204917,1749532251919,-4153.45885635,0.00017781,2]
[365204918,1749532251929,-200.0,0.00017781,2]
[365204919,1749532251938,-150.0,0.00017784,2]
[365204920,1749532251948,-2960.74444018,0.00017789,2]
[365204921,1749532251957,-150.0,0.0001779,2]
[365204922,1749532251966,-150.0,0.00017793,2]
[365204923,1749532251976,-150.0,0.00017796,2]
[365204924,1749532251985,-500.0,0.00017799,2]
[365204925,1749532251995,-630.78,0.00017799,2]
[365204926,1749532252005,-269.792,0.00017799,2]
[365204927,1749532252014,-500.0,0.00017799,2]
[365204928,1749532252024,-1000.0,0.000178,2]
[365204929,1749532252034,-1000.0,0.000178,3]
[365204930,1749532252043,-1000.0,0.000178,4]
[365204931,1749532252053,-171.27017321,0.000178,2]
[365204932,1749532252063,-188619.66822402,0.000178,2]
[365204933,1749532252072,-151.0,0.000178,2]
[365204934,1749532252082,-151.0,0.000178,2]
[365204935,1749532252093,-151.0,0.000178,2]
[365204936,1749532252102,-151.0,0.000178,2]
[365204937,1749532252111,-151.0,0.000178,2]
[365204938,1749532252121,-151.0,0.000178,2]
[365204939,1749532252130,-151.0,0.000178,2]
[365204940,1749532252140,-151.0,0.000178,2]
[365204941,1749532252150,-182.596802,0.000178,2]
[365204942,1749532252159,-182.596802,0.000178,2]
[365204943,1749532252168,-151.0,0.000178,2]
[365204944,1749532252177,-152.332326,0.000178,2]
[365204945,1749532252186,-151.0,0.000178,2]
[365204946,1749532252196,-151.0,0.000178,2]
[365204947,1749532252205,-151.371907,0.000178,2]
[365204948,1749532252215,-151.0,0.000178,2]
[365204949,1749532252224,-151.0,0.000178,2]
[365204950,1749532252233,-151.0,0.000178,2]
[365204951,1749532252242,-256.868144,0.000178,2]
[365204952,1749532252251,-166.353755,0.000178,2]
[365204953,1749532252261,-151.0,0.000178,2]
[365204954,1749532252270,-247.381337,0.000178,2]
[365204955,1749532252279,-151.0,0.000178,2]
[365204956,1749532252290,-423.585658,0.000178,2]
[365204957,1749532252299,-423.585658,0.000178,2]
[365204958,1749532252309,-151.0,0.000178,2]
[365204959,1749532252318,-151.0,0.000178,2]
[365204960,1749532252327,-151.0,0.000178,2]
[365204961,1749532252337,-151.0,0.000178,2]
[365204962,1749532252347,-4210.126159,0.000178,2]
[365204963,1749532252357,-151.0,0.000178,2]
[365204964,1749532252366,-151.0,0.000178,2]
[365204965,1749532252377,-154.047487,0.000178,2]
[365204966,1749532252389,-151.0,0.000178,2]
[365204967,1749532252399,-151.0,0.000178,2]
[365204968,1749532252413,-151.0,0.000178,2]
[365204969,1749532252422,-151.0,0.000178,2]
[365204970,1749532252431,-151.0,0.000178,2]
[365204971,1749532252440,-151.0,0.000178,2]
[365204972,1749532252450,-151.0,0.000178,2]
[365204973,1749532252459,-151.0,0.000178,2]
[365204974,1749532252469,-515.587586,0.000178,2]
[365204975,1749532252478,-515.587586,0.000178,2]
[365204976,1749532252487,-151.0,0.000178,2]
[365204977,1749532252496,-151.0,0.000178,2]
[365204978,1749532252505,-151.0,0.000178,2]
[365204979,1749532252514,-169.270272,0.000178,2]
[365204980,1749532252523,-151.0,0.000178,2]
[365204981,1749532252532,-151.0,0.000178,2]
[365204982,1749532252541,-152.366551,0.000178,2]
[365204983,1749532252550,-151.0,0.000178,2]
[365204984,1749532252559,-1735.169931,0.000178,2]
[365204985,1749532252569,-1735.169931,0.000178,2]
[365204986,1749532252578,-151.0,0.000178,2]
[365204987,1749532252588,-151.0,0.000178,2]
[365204988,1749532252598,-705.049486,0.000178,2]
[365204989,1749532252607,-151.0,0.000178,2]
[365204990,1749532252616,-705.049486,0.000178,2]
[365204991,1749532252626,-151.0,0.000178,2]
[365204992,1749532252635,-892.32,0.000178,2]
[365204993,1749532252644,-151.0,0.000178,2]
[365204994,1749532252653,-151.0,0.000178,2]
[365204995,1749532252662,-500.0,0.000178,6]
[365204996,1749532252672,-200.0,0.00017802,2]
[365204997,1749532252681,-150.0,0.00017802,2]
[365204998,1749532252691,-12291.97278598,0.00017808,2]
[365204999,1749532252699,-151.0,0.00017808,2]
[365205000,1749532252707,-151.0,0.00017808,2]
[365205001,1749532252716,-151.0,0.00017808,2]
[365205002,1749532252726,-151.0,0.00017808,2]
[365205003,1749532252735,-151.0,0.00017808,2]
[365205004,1749532252745,-228.179865,0.00017808,2]
[365205005,1749532252754,-151.0,0.00017808,2]
[365205006,1749532252763,-151.628595,0.00017808,2]
[365205007,1749532252772,-353.18027,0.00017808,2]
[365205008,1749532252781,-151.0,0.00017808,2]
[365205009,1749532252791,-151.0,0.00017808,2]
[365205010,1749532252799,-500.0,0.00017808,2]
[365205011,1749532252809,-500.0,0.00017808,2]
[365205012,1749532252818,-500.0,0.00017808,2]
[365205013,1749532252827,-500.0,0.00017808,2]
[365205014,1749532252836,-500.0,0.00017808,2]
[365205015,1749532252845,-500.0,0.00017808,2]
[365205016,1749532252854,-500.0,0.00017808,2]
[365205017,1749532252864,-500.0,0.00017808,2]
[365205018,1749532252879,-500.0,0.00017808,2]
[365205019,1749532252889,-500.0,0.00017808,2]
[365205020,1749532252898,-500.0,0.00017808,2]
[365205021,1749532252907,-500.0,0.00017808,2]
[365205022,1749532252917,-517.08906801,0.00017808,2]
[365205023,1749532252926,-500.0,0.00017808,2]
[365205024,1749532252935,-500.0,0.00017808,2]
[365205025,1749532252945,-500.0,0.00017808,2]
[365205026,1749532252954,-500.0,0.00017808,2]
[365205027,1749532252964,-500.0,0.00017808,2]
[365205028,1749532252974,-500.0,0.00017808,2]
[365205029,1749532252983,-500.0,0.00017808,2]
[365205030,1749532252992,-500.0,0.00017808,2]
[365205031,1749532253001,-500.0,0.00017808,2]
[365205032,1749532253011,-500.0,0.00017808,2]
[365205033,1749532253020,-211.96234761,0.00017808,2]
[365205034,1749532253029,-300.0,0.00017808,2]
[365205035,1749532253038,-150.0,0.00017813,2]
[365205036,1749532253047,-2765.68543656,0.00017815,2]
[365205037,1749532253056,-150.0,0.0001782,2]
[365205038,1749532253066,-840.70119032,0.00017822,2]
[365205039,1749532253075,-150.0,0.00017825,2]
[365205040,1749532253085,-1000.0,0.00017826,2]
[365205041,1749532253095,-200.0,0.0001783,2]
[365205042,1749532253104,-3251.31302042,0.00017835,2]
[365205043,1749532253336,-9040.65976556,0.00017835,2]
[365205044,1749532253346,-383.908865,0.00017839,2]
[365205045,1749532253355,-383.908865,0.00017839,2]
[365205046,1749532253365,-794.08707951,0.00017845,2]
[365205047,1749532253501,-340.0,0.00017037,2]
[365205048,1749532253520,-513.0,0.00017037,2]
[365205049,1749532253529,-1166.03192511,0.00017845,2]
[365205050,1749532253538,-500.0,0.00017846,2]
[365205051,1749532253548,-200.0,0.00017846,2]
[365205052,1749532253557,-6145.98639301,0.00017847,2]
[365205053,1749532253566,-150.0,0.00017852,2]
[365205054,1749532253575,-6145.98639301,0.00017853,2]
[365205055,1749532253584,-1500.0,0.00017854,2]
[365205056,1749532253593,-513.31825847,0.00017854,2]
[365205057,1749532253602,-500.0,0.00017855,2]
[365205058,1749532253611,-500.0,0.00017855,2]
[365205059,1749532253620,-620.0,0.00017855,2]
[365205060,1749532253629,-368.76,0.00017855,2]
[365205061,1749532253639,-4153.45885635,0.00017858,2]
[365205062,1749532253647,-150.0,0.00017858,2]
[365205063,1749532253657,-2076.72942819,0.00017858,2]
[365205064,1749532253666,-160.56397885,0.00017861,2]
[365205065,1749532253675,-150.0,0.00017863,2]
[365205066,1749532253684,-1960.11900462,0.00017863,2]
[365205067,1749532253693,-2765.68543656,0.00017863,2]
[365205068,1749532253703,-2076.72942819,0.00017866,2]
[365205069,1749532253712,-150.0,0.00017867,2]
[365205070,1749532253721,-4153.45885635,0.00017867,2]
[365205071,1749532253731,-933.41883484,0.00017875,2]
[365205072,1749532253740,-150.0,0.00017875,2]
[365205073,1749532253749,-150.0,0.00017878,2]
[365205074,1749532253759,-6145.98639301,0.0001788,2]
[365205075,1749532253769,-150.0,0.00017882,2]
[365205076,1749532253779,-840.70119032,0.00017883,2]
[365205077,1749532253790,-9776.69379224,0.00017883,2]
[365205078,1749532253872,3780.46,0.00015914,2]
[365205079,1749532254038,-796.76,0.00017627,2]
[365205080,1749532254048,-298.74,0.00017883,2]
[365205081,1749532254060,-268.83,0.00017883,2]
[365205082,1749532293618,694.09,0.00014949,2]
[365205083,1749532312952,500.0,0.00014964,2]
[365205084,1749532313038,500.0,0.00014964,2]
[365205086,1749532361472,206.0,0.00015425,2]
[365205090,1749532479367,180.0,0.00015392,2]
[365205091,1749532533115,500.0,0.00014964,2]
[365205092,1749532566436,334.86594465,0.00024039,120]
[365205093,1749532723497,-206.0,0.00016055,2]
[365205094,1749532727558,-171.94691659,0.00016055,2]
[365205099,1749532847131,500.0,0.00014964,2]
[365205100,1749532916526,500.0,0.00014964,2]
[365205101,1749532936256,321.49,0.00015915,2]
[365205102,1749532955238,152.0,0.00016978,13]
[365205103,1749532955271,173.26,0.00012722,2]